bitfinex/quotes_ETHUSD_20250110
["timestamp","ask_amount","ask_price","bid_price","bid_amount"]
[1736540020818,3.0,3291.4,3291.2,0.1695099]
[1736540020975,4.37089257,3291.4,3291.2,0.1695099]
[1736540023815,4.40913257,3291.4,3291.2,0.1695099]
[1736540024011,1.37089257,3291.4,3291.2,0.1695099]
[1736540024217,4.40920257,3291.3,3291.2,0.1695099]
[1736540024423,5.17600257,3291.3,3291.2,0.1695099]
[1736540025522,4.40920257,3291.3,3291.2,0.1695099]
[1736540025727,1.37089257,3291.3,3291.2,0.1695099]
[1736540027820,1.37089257,3291.3,3291.2,0.9706099]
[1736540028020,1.37089257,3291.3,3291.2,1.37152889]
[1736540028342,1.37089257,3291.3,3291.2,0.9706099]
[1736540030239,0.7874,3291.4,3291.2,0.1695099]
[1736540030606,5.55860026,3291.5,3291.2,0.1695099]
[1736540030808,3.03827,3291.4,3291.2,0.1695099]
[1736540031543,2.52044026,3291.5,3291.2,0.1695099]
[1736540031932,5.55857026,3291.5,3291.2,0.1695099]
[1736540033723,2.52044026,3291.5,3291.2,0.1695099]
[1736540034356,5.55858026,3291.5,3291.2,0.1695099]
[1736540034913,3.03831,3291.3,3291.2,0.1695099]
[1736540035225,7.40920257,3291.3,3291.2,0.1695099]
[1736540039462,8.17970257,3291.3,3291.2,0.1695099]
[1736540040017,8.18720257,3291.3,3291.2,0.1695099]
[1736540040218,3.03924,3290.3,3289.2,0.7503]
[1736540040421,1.37089257,3290.3,3289.7,0.7503]
[1736540040718,1.37089257,3290.3,3290.0,0.7503]
[1736540041021,1.37089257,3290.3,3290.0,0.78069174]
[1736540041359,1.37089257,3290.3,3290.2,0.8253]
[1736540042230,1.37089257,3290.3,3290.2,1.05297647]
[1736540043520,1.37089257,3290.3,3290.2,0.8253]
[1736540045363,1.37089257,3290.3,3290.2,1.211771]
[1736540045855,1.37089257,3290.3,3290.2,0.8253]
[1736540046033,1.37089257,3290.3,3290.2,1.0528487]
[1736540047034,1.37089257,3290.3,3290.2,0.8253]
[1736540048157,1.37089257,3290.3,3289.7,0.787]
[1736540048365,4.41016257,3290.3,3289.7,0.787]
[1736540048526,1.37089257,3290.3,3289.7,0.787]
[1736540048726,1.37089257,3290.3,3289.6,0.61004406]
[1736540048727,1.37089257,3290.3,3289.9,0.799]
[1736540048922,1.37089257,3290.3,3290.2,3.83832]
[1736540049135,1.37089257,3290.3,3290.2,4.22519136]
[1736540049562,1.37089257,3290.3,3290.2,1.18587136]
[1736540049764,1.37089257,3290.3,3290.2,0.799]
[1736540050427,1.37089257,3290.3,3290.2,1.02648606]
[1736540050985,1.37089257,3290.8,3290.2,1.02648606]
[1736540052153,1.37089257,3290.8,3289.4,3.04001]
[1736540052355,3.0,3290.5,3290.0,0.821]
[1736540052867,1.37089257,3290.8,3289.5,0.228]
[1736540052868,3.34844026,3290.3,3289.7,0.821]
[1736540053163,6.86038,3290.5,3289.7,0.821]
[1736540053669,3.0,3290.3,3289.7,0.821]
[1736540054030,1.37089257,3290.4,3289.8,3.03965]
[1736540054465,1.37089257,3290.4,3289.9,0.7574]
[1736540055368,1.37089257,3290.4,3289.9,3.8273838]
[1736540055671,1.37089257,3290.4,3289.9,3.79699]
[1736540056071,1.37089257,3290.4,3290.1,3.03941]
[1736540056375,1.37089257,3290.4,3290.2,1.10718027]
[1736540056575,1.37089257,3290.4,3290.2,0.8002]
[1736540057046,4.37089257,3290.8,3290.2,0.8002]
[1736540057572,3.31984026,3290.6,3289.6,0.8182]
[1736540057728,3.31984026,3290.6,3289.7,3.03976]
[1736540057931,6.35880026,3290.6,3289.8,0.62019561]
[1736540058797,3.03908,3290.5,3289.8,0.62019561]
[1736540058961,3.0,3290.4,3289.8,0.62019561]
[1736540059402,3.03916,3290.4,3289.8,0.62019561]
[1736540059893,3.03916,3290.4,3289.9,0.22758097]
[1736540060118,3.03844,3291.2,3289.9,0.22758097]
[1736540060119,8.55995026,3290.0,3289.9,0.22758097]
[1736540060318,10.73024283,3290.0,3289.9,0.22758097]
[1736540060461,10.75274283,3290.0,3289.9,0.22758097]
[1736540061215,3.03991,3289.6,3288.9,0.8182]
[1736540061422,2.52044026,3289.5,3288.9,0.8182]
[1736540061605,5.56045026,3289.5,3288.9,0.8182]
[1736540061785,2.52044026,3289.2,3288.9,0.8182]
[1736540063795,6.89133283,3289.5,3288.9,0.8182]
[1736540064146,3.04008,3289.4,3288.9,0.8182]
[1736540064354,2.52044026,3289.2,3288.9,0.8182]
[1736540064504,2.52044026,3289.2,3288.3,0.755]
[1736540064694,3.0,3289.1,3288.4,0.61962657]
[1736540065653,3.8154,3289.1,3288.4,0.61962657]
[1736540065990,2.52044026,3288.9,3288.4,0.61962657]
[1736540067131,2.52044026,3288.6,3288.4,0.61962657]
[1736540067632,2.52044026,3288.8,3288.1,3.04121]
[1736540067828,2.52044026,3288.8,3288.2,0.8135]
[1736540068140,2.52044026,3288.8,3287.9,0.1695099]
[1736540068141,3.0,3288.4,3287.9,0.1695099]
[1736540068329,2.52044026,3288.2,3287.9,0.9830099]
[1736540070606,2.52044026,3288.5,3287.9,0.9830099]
[1736540070805,2.52044026,3288.2,3287.9,0.9830099]
[1736540071028,3.0,3288.1,3287.9,0.1695099]
[1736540071338,6.04129,3288.1,3287.9,0.1695099]
[1736540073544,3.04136,3288.0,3287.9,0.1695099]
[1736540074960,4.41225257,3288.0,3287.9,0.1695099]
[1736540075676,1.37089257,3288.0,3287.9,0.1695099]
[1736540085198,1.37089257,3288.0,3287.9,0.57032689]
[1736540085385,1.37089257,3288.0,3287.9,1.36752689]
[1736540086209,1.37089257,3288.0,3287.9,0.9667099]
[1736540086982,3.0,3288.5,3287.9,0.9667099]
[1736540087891,4.37089257,3288.7,3287.9,0.9667099]
[1736540088517,1.37089257,3288.7,3288.1,3.04126]
[1736540088697,2.14579257,3289.1,3288.2,0.82760971]
[1736540088891,3.04054,3288.9,3288.2,0.7972]
[1736540089220,3.0,3289.0,3288.2,0.7972]
[1736540089597,3.04053,3288.9,3288.2,0.7972]
[1736540090198,3.0,3289.0,3288.2,0.7972]
[1736540090578,6.0405,3289.0,3288.2,0.7972]
[1736540091422,3.04066,3288.8,3288.2,0.7972]
[1736540091717,6.04051,3289.0,3288.2,0.7972]
[1736540092096,3.04053,3288.9,3288.2,0.7972]
[1736540092829,1.37089257,3288.9,3288.2,0.7972]
[1736540093026,3.04074,3288.7,3288.2,0.7972]
[1736540093191,3.87272,3288.6,3288.0,0.8327]
[1736540093626,0.8319,3288.6,3288.0,0.8327]
[1736540093835,6.04088,3288.6,3287.9,0.1695099]
[1736540094217,3.0,3288.7,3287.9,0.1695099]
[1736540094622,3.04081,3288.6,3287.9,0.1695099]
[1736540095010,3.0,3288.7,3287.9,0.1695099]
[1736540095507,3.04074,3288.7,3287.9,0.1695099]
[1736540096337,3.04084,3288.6,3287.9,0.1695099]
[1736540096501,3.0,3288.5,3287.9,0.1695099]
[1736540100553,3.0,3288.5,3288.0,0.7891]
[1736540101522,3.0,3288.5,3287.9,0.1695099]
[1736540101523,3.04126,3288.2,3287.9,0.1695099]
[1736540101730,6.35165026,3288.3,3287.9,0.1695099]
[1736540102436,2.17239257,3288.5,3287.9,0.1695099]
[1736540102623,1.37089257,3288.5,3288.0,0.82101322]
[1736540102828,1.37089257,3288.5,3288.0,0.7906]
[1736540103118,3.89133283,3288.5,3288.0,0.7906]
[1736540103311,3.0,3288.4,3288.1,0.2277345]
[1736540103548,1.37089257,3288.5,3288.1,0.2277345]
[1736540104057,1.37089257,3288.5,3288.0,0.7906]
[1736540104347,1.37089257,3288.5,3288.0,1.19075099]
[1736540104723,3.0,3288.4,3288.0,0.7906]
[1736540105135,3.0,3288.4,3287.9,0.1695099]
[1736540105136,3.0,3288.1,3287.9,0.1695099]
[1736540106263,6.04136,3288.0,3287.9,0.1695099]
[1736540106442,3.0,3288.0,3287.9,0.1695099]
[1736540107338,0.7822,3288.4,3287.9,0.1695099]
[1736540107339,3.04104,3288.4,3287.9,0.1695099]
[1736540107549,3.04104,3288.4,3288.0,0.8]
[1736540107754,3.0,3288.3,3288.0,0.8]
[1736540108125,1.37089257,3288.5,3288.0,0.8]
[1736540108567,1.37089257,3288.5,3288.2,0.8]
[1736540110593,3.0,3288.4,3287.9,0.1695099]
[1736540110863,8.56180026,3288.0,3287.9,0.1695099]
[1736540112937,5.52044026,3288.0,3287.9,0.1695099]
[1736540114692,8.56180026,3288.0,3287.9,0.1695099]
[1736540114831,5.52044026,3288.0,3287.9,0.1695099]
[1736540115528,8.56180026,3288.0,3287.9,0.1695099]
[1736540116032,9.95519283,3288.0,3287.9,0.1695099]
[1736540116340,10.78329283,3288.0,3287.9,0.1695099]
[1736540119531,11.33329283,3288.0,3287.9,0.1695099]
[1736540119841,11.34079283,3288.0,3287.9,0.1695099]
[1736540120232,13.86123309,3288.0,3287.9,9.9e-06]
[1736540120439,0.8083,3287.2,3286.3,0.7814]
[1736540120659,2.52044026,3286.8,3286.3,0.7814]
[1736540120896,2.52044026,3286.5,3286.3,0.7814]
[1736540122332,2.52044026,3286.8,3286.3,0.7814]
[1736540123787,3.0,3286.7,3285.9,0.7618]
[1736540124170,3.0,3286.7,3286.1,3.04309]
[1736540124355,3.0,3287.0,3286.3,3.04292]
[1736540125161,3.0,3287.0,3286.2,0.7618]
[1736540125402,3.0,3286.7,3286.2,0.7618]
[1736540126694,0.7795,3286.7,3286.2,0.7618]
[1736540126889,3.0,3286.8,3286.2,0.7618]
[1736540127094,2.52044026,3286.9,3286.2,3.80475]
[1736540127253,2.52044026,3286.9,3286.3,0.38351795]
[1736540127604,1.37089257,3287.1,3286.4,3.83027]
[1736540127750,2.52044026,3286.7,3286.4,0.7875]
[1736540127947,2.52044026,3286.7,3285.9,0.81792873]
[1736540128185,2.52044026,3286.4,3285.9,0.81792873]
[1736540128449,2.52044026,3286.1,3285.9,0.7875]
[1736540128754,2.52044026,3286.4,3285.9,0.7875]
[1736540130097,4.66403283,3286.7,3285.9,0.7875]
[1736540130979,2.52044026,3286.4,3285.9,0.7875]
[1736540131775,2.52044026,3286.1,3285.9,0.7875]
[1736540133016,3.0,3286.0,3285.6,0.7873]
[1736540133166,5.52044026,3285.7,3285.2,0.7873]
[1736540133352,2.52044026,3285.3,3285.2,0.7873]
[1736540134199,3.0,3285.8,3285.2,0.7873]
[1736540134404,2.52044026,3285.9,3285.2,3.83124]
[1736540134613,2.52044026,3285.9,3285.3,0.383124]
[1736540134754,2.52044026,3285.9,3285.2,0.7873]
[1736540135488,2.52044026,3285.6,3285.2,0.7873]
[1736540135701,2.52044026,3285.3,3284.6,0.799]
[1736540135855,3.04396,3285.2,3284.6,0.799]
[1736540136460,2.52044026,3285.0,3284.6,0.799]
[1736540136981,3.0,3285.2,3284.6,0.799]
[1736540137494,3.04353,3285.7,3284.7,0.799]
[1736540137728,2.52044026,3285.6,3284.8,0.799]
[1736540137891,2.52044026,3285.3,3284.8,0.799]
[1736540140830,3.0,3284.9,3284.5,0.9685099]
[1736540141032,2.52044026,3284.7,3284.5,0.9685099]
[1736540141609,2.52044026,3284.7,3284.5,0.1695099]
[1736540141930,3.0,3284.9,3284.5,0.1695099]
[1736540142636,3.7508,3284.9,3284.5,0.1695099]
[1736540145902,3.0,3284.9,3284.5,0.1695099]
[1736540146225,2.52044026,3285.0,3284.6,0.8142]
[1736540146424,0.8269,3285.5,3284.6,0.8142]
[1736540146627,3.0,3285.2,3284.6,3.85866]
[1736540147027,2.52044026,3285.3,3284.7,3.04439]
[1736540147225,2.52044026,3285.3,3284.8,0.8142]
[1736540148137,1.37089257,3285.8,3284.9,0.8091]
[1736540148138,2.52044026,3285.6,3284.9,0.8091]
[1736540148310,2.52044026,3285.9,3285.4,0.8091]
[1736540148511,2.52044026,3285.9,3285.4,3.85282]
[1736540148839,2.52044026,3286.2,3285.4,0.8091]
[1736540149002,3.0,3286.1,3285.4,0.8091]
[1736540149203,2.52044026,3286.2,3285.5,3.0436]
[1736540149538,2.52428866,3286.2,3285.4,0.8091]
[1736540149737,2.52428866,3286.2,3285.4,1.19743153]
[1736540149963,2.52428866,3286.2,3285.6,3.0435]
[1736540150369,2.52044026,3285.9,3285.4,0.8091]
[1736540153041,2.52044026,3285.6,3285.1,0.7598]
[1736540153242,2.52044026,3285.6,3284.8,3.04424]
[1736540153243,3.32844026,3285.6,3284.8,3.80404]
[1736540153544,2.52044026,3285.6,3284.9,3.04423]
[1736540154073,2.52044026,3285.9,3285.4,3.04376]
[1736540154365,2.52044026,3285.9,3285.5,0.8011]
[1736540157149,2.52044026,3285.9,3285.1,3.66201879]
[1736540157366,2.52044026,3285.9,3285.2,0.7884]
[1736540157571,2.52044026,3285.9,3284.8,3.424644]
[1736540157572,3.04356,3285.7,3284.8,3.04424]
[1736540157712,2.52044026,3285.6,3284.9,0.7884]
[1736540158470,3.0,3285.8,3285.0,0.03044055]
[1736540158651,3.0,3285.8,3285.1,3.04398]
[1736540159152,3.0,3285.8,3285.3,0.789]
[1736540160248,3.0,3285.8,3284.9,0.61329911]
[1736540160470,0.0113484,3286.2,3284.5,0.3975099]
[1736540160471,2.52044026,3285.3,3284.7,0.8209]
[1736540160751,3.0,3285.2,3284.7,0.8209]
[1736540161353,2.52044026,3285.0,3284.5,0.1695099]
[1736540161561,0.7573,3284.9,3284.5,0.1695099]
[1736540161717,6.044,3285.2,3284.5,0.1695099]
[1736540162122,3.0,3285.2,3284.6,0.797]
[1736540162430,0.8132,3285.6,3284.7,0.03044258]
[1736540162637,3.0,3285.4,3284.6,0.797]
[1736540162839,0.8132,3285.6,3284.6,0.797]
[1736540163038,3.0,3285.5,3284.6,3.84149]
[1736540163247,6.04368,3285.5,3284.6,3.84149]
[1736540163453,2.52044026,3285.3,3284.6,0.797]
[1736540164133,3.04426,3284.9,3284.5,0.1695099]
[1736540164634,3.0,3284.8,3284.5,0.1695099]
[1736540164956,3.04444,3284.7,3284.5,0.1695099]
[1736540165261,3.04434,3284.8,3284.5,0.1695099]
[1736540165435,3.0,3284.9,3284.5,0.1695099]
[1736540165819,6.04427,3284.9,3284.5,0.1695099]
[1736540166046,3.8323,3284.6,3284.5,0.1695099]
[1736540166215,7.43431,3284.6,3284.5,0.1695099]
[1736540166527,7.44931,3284.6,3284.5,0.1695099]
[1736540169647,8.82770257,3284.6,3284.5,0.1695099]
[1736540170051,9.18914115,3284.6,3284.5,0.1695099]
[1736540170673,0.766,3283.6,3282.9,0.8152]
[1736540170871,2.52044026,3283.4,3282.9,1.201346]
[1736540171078,5.56612026,3283.4,3282.9,0.8152]
[1736540171578,2.52044026,3284.1,3283.3,0.793]
[1736540171773,3.0,3284.0,3283.3,0.793]
[1736540172071,3.8129,3284.0,3283.3,0.793]
[1736540172236,3.0,3284.0,3283.3,0.793]
[1736540172437,2.52044026,3284.4,3283.6,0.793]
[1736540172631,2.52044026,3284.4,3283.6,3.83843]
[1736540172838,3.0,3284.3,3283.6,0.793]
[1736540173172,6.04481,3284.3,3283.6,0.793]
[1736540173476,2.52044026,3284.1,3283.6,0.793]
[1736540174281,3.0,3284.0,3283.1,3.04585]
[1736540174480,3.0,3284.0,3283.2,0.7585]
[1736540174780,3.0,3283.6,3282.9,0.7585]
[1736540174948,2.52044026,3283.5,3282.9,0.7585]
[1736540175338,3.0,3283.6,3282.9,0.7585]
[1736540176664,3.0,3283.7,3282.9,0.7585]
[1736540176980,3.55,3283.7,3282.9,0.7585]
[1736540177365,3.04545,3283.6,3282.9,0.7585]
[1736540177677,3.89079413,3283.9,3282.6,3.65833532]
[1736540177678,0.8321,3283.3,3282.6,1.44459532]
[1736540177840,0.8321,3283.3,3282.2,3.87933]
[1736540178041,3.04588,3283.2,3282.3,0.387933]
[1736540178355,0.8321,3283.3,3282.3,0.98553417]
[1736540178559,3.87784,3283.3,3282.3,3.64423117]
[1736540179778,3.04587,3283.2,3282.3,0.59760117]
[1736540180168,0.8321,3283.3,3282.2,0.8326]
[1736540180169,3.04618,3282.8,3282.2,0.8326]
[1736540180373,0.5575,3282.9,3282.2,0.8326]
[1736540181505,3.0,3282.8,3282.2,0.8326]
[1736540182068,3.55,3283.0,3282.2,0.8326]
[1736540182314,3.8321,3283.3,3282.5,3.04644]
[1736540182616,6.12804413,3283.5,3282.8,0.8001]
[1736540182830,3.0,3283.4,3282.8,0.8001]
[1736540183771,0.8114,3283.7,3282.9,3.046]
[1736540183969,3.05268,3283.9,3282.9,3.046]
[1736540184391,0.8114,3284.0,3282.9,0.8001]
[1736540184592,0.8114,3284.4,3283.3,0.7905]
[1736540184992,3.04489,3284.2,3283.3,1.174128]
[1736540185218,3.0,3283.9,3283.3,0.7905]
[1736540185403,0.55,3284.1,3283.3,0.7905]
[1736540185604,3.08249413,3284.2,3283.5,3.04552]
[1736540185809,3.85614,3284.4,3283.5,3.04552]
[1736540185979,3.0,3284.5,3283.6,0.83865404]
[1736540186188,3.0,3284.5,3283.6,0.8082]
[1736540186387,3.0,3284.5,3283.6,3.8536]
[1736540186600,3.0,3284.5,3283.6,4.23896]
[1736540186929,3.0,3284.5,3283.6,0.8082]
[1736540187237,3.0,3284.3,3283.6,0.8082]
[1736540188328,3.0,3283.8,3283.3,0.801]
[1736540188706,3.04542,3283.7,3282.6,4.46039312]
[1736540189043,3.86834,3283.6,3282.7,0.48450471]
[1736540189213,3.0,3283.3,3282.6,0.801]
[1736540189416,3.04562,3283.4,3282.6,0.801]
[1736540189417,3.04582,3283.2,3282.6,0.801]
[1736540189726,3.0,3282.9,3282.2,0.801]
[1736540189931,1.3729,3283.0,3282.3,0.60082512]
[1736540190127,3.0,3282.7,3282.3,0.60082512]
[1736540190365,3.0,3282.7,3281.6,0.801]
[1736540190366,3.04648,3282.5,3281.6,0.801]
[1736540190543,3.0,3282.5,3281.6,1.208635]
[1736540190746,3.0,3282.5,3281.6,0.801]
[1736540191338,3.55,3282.2,3281.3,1.42323089]
[1736540191520,3.04647,3282.5,3281.4,0.83147379]
[1736540191721,3.08249413,3282.3,3281.8,0.8071]
[1736540192109,3.0,3282.2,3281.8,0.8071]
[1736540192310,3.04693,3282.0,3281.3,0.8071]
[1736540193517,6.82237,3282.2,3281.3,0.8071]
[1736540194302,3.0,3282.0,3281.3,0.8071]
[1736540195410,3.08249413,3281.9,3281.3,0.8071]
[1736540197001,3.04692,3282.0,3281.3,0.8071]
[1736540197902,1.3701,3282.6,3281.4,0.0304745]
[1736540198283,4.3701,3282.6,3281.4,0.0304745]
[1736540198879,6.12885413,3282.7,3281.5,0.7626]
[1736540199128,6.91396413,3283.1,3282.2,0.7626]
[1736540199339,6.91396413,3283.1,3282.2,0.79306417]
[1736540199688,3.08249413,3283.1,3282.2,4.22368859]
[1736540199995,3.08249413,3283.1,3282.2,1.14658442]
[1736540200315,3.0,3283.0,3282.2,0.7626]
[1736540201227,6.04601,3283.0,3282.2,0.7626]
[1736540201427,3.08249413,3282.3,3281.9,0.8241]
[1736540201661,3.08249413,3282.3,3281.3,3.87158]
[1736540201805,3.08249413,3282.3,3281.4,3.04744]
[1736540202004,3.08249413,3282.3,3281.5,3.46499429]
[1736540202200,3.08249413,3282.3,3281.5,3.434524]
[1736540202525,3.08249413,3282.3,3281.5,0.387154]
[1736540203333,3.08249413,3282.3,3281.5,3.46499428]
[1736540204628,3.08249413,3282.3,3281.5,0.387154]
[1736540204834,3.08249413,3282.3,3281.3,3.87164]
[1736540205035,3.0,3282.2,3281.3,0.8241]
[1736540205330,3.08249413,3281.4,3281.3,0.8241]
[1736540205539,3.0,3281.3,3281.2,0.1695099]
[1736540205901,3.08249413,3281.8,3281.2,0.1695099]
[1736540206741,3.0,3281.7,3281.2,0.1695099]
[1736540208441,3.08249413,3281.8,3281.3,0.8183]
[1736540211305,3.0,3281.7,3281.2,0.1695099]
[1736540211504,3.04757,3281.3,3281.2,0.1695099]
[1736540212329,3.84708,3281.6,3281.2,0.1695099]
[1736540212537,3.04748,3281.4,3281.2,0.1695099]
[1736540212850,3.88219413,3281.6,3281.2,0.1695099]
[1736540213013,3.0474,3281.5,3281.2,0.1695099]
[1736540213221,3.04701,3281.9,3281.2,0.1695099]
[1736540213222,3.08249413,3281.7,3281.2,0.1695099]
[1736540213426,3.0,3281.6,3281.2,0.1695099]
[1736540215507,3.04742,3281.5,3281.2,0.1695099]
[1736540215843,6.08249413,3281.3,3281.2,0.1695099]
[1736540218349,3.08249413,3281.7,3281.2,0.1695099]
[1736540218642,3.0,3281.6,3281.2,0.1695099]
[1736540219252,3.08249413,3281.3,3281.2,0.1695099]
[1736540219852,3.08249413,3281.7,3281.2,0.1695099]
[1736540220264,6.12976413,3281.7,3281.2,0.1695099]
[1736540220559,3.04729,3281.6,3281.2,0.1695099]
[1736540220759,3.04739,3281.5,3281.2,0.1695099]
[1736540221173,3.08249413,3281.3,3281.2,0.1695099]
[1736540221324,6.08249413,3281.3,3281.2,0.1695099]
[1736540221720,9.95286413,3281.3,3281.2,0.1695099]
[1736540222577,6.87787,3281.3,3281.2,0.1695099]
[1736540223200,7.45217,3281.3,3281.2,0.1695099]
[1736540223571,7.61053475,3281.3,3281.2,0.1695099]
[1736540223876,7.45217,3281.3,3281.2,0.1695099]
[1736540227146,7.44467,3281.3,3281.2,0.1695099]
[1736540228526,0.15293873,3281.5,3281.2,0.1695099]
[1736540228527,3.04739,3281.5,3281.2,0.1695099]
[1736540228754,3.89909413,3281.6,3281.2,0.1695099]
[1736540228954,3.04757,3281.3,3281.2,0.1695099]
[1736540229957,3.05507,3281.3,3281.2,0.1695099]
[1736540230270,4.39087,3281.3,3281.2,0.1695099]
[1736540230771,3.04851,3280.3,3279.8,0.8005]
[1736540230975,3.08249413,3280.5,3279.8,0.8005]
[1736540231144,3.0,3280.4,3279.8,0.8005]
[1736540231337,3.0,3280.4,3279.9,0.384955]
[1736540231534,3.08249413,3280.9,3280.1,3.04861]
[1736540231874,3.08249413,3280.9,3280.1,0.8304]
[1736540232077,3.0,3281.0,3280.1,3.879]
[1736540232631,3.7801,3281.2,3280.3,3.04847]
[1736540232836,3.7801,3281.2,3280.5,0.8187]
[1736540233035,3.0,3281.0,3280.5,0.8187]
[1736540234858,3.04787,3281.0,3280.5,0.8187]
[1736540235072,3.0,3281.0,3280.5,0.8187]
[1736540235234,3.04804,3280.8,3280.5,0.8187]
[1736540235435,3.08249413,3280.9,3280.5,0.8187]
[1736540235638,6.13046413,3280.9,3280.5,0.8187]
[1736540236201,6.04805,3280.8,3280.1,0.8006]
[1736540236338,3.04814,3280.7,3280.1,0.8006]
[1736540236744,3.7798,3280.8,3279.9,0.8006]
[1736540236979,3.04821,3280.7,3279.9,0.8006]
[1736540237179,3.7798,3280.8,3279.9,0.8006]
[1736540237383,6.04804,3280.8,3279.9,3.84946]
[1736540237604,6.04804,3280.8,3279.9,0.8006]
[1736540237813,3.04815,3280.7,3279.9,0.8006]
[1736540237947,3.08249413,3280.5,3279.9,0.8006]
[1736540238149,3.0485,3280.3,3279.9,0.8006]
[1736540238383,3.08249413,3280.1,3279.4,0.7944]
[1736540238744,6.04845,3280.4,3279.4,1.178781]
[1736540238943,3.89459413,3280.5,3279.2,0.62319503]
[1736540238944,3.0,3280.5,3279.9,3.0488]
[1736540239253,3.08249413,3280.9,3279.9,0.7687]
[1736540239556,6.13046413,3280.9,3279.9,3.81754]
[1736540239755,3.04811,3280.8,3279.9,3.81754]
[1736540240551,3.04811,3280.8,3280.0,0.7869]
[1736540240905,3.04779,3281.1,3280.3,0.7993]
[1736540241060,4.06359413,3281.4,3280.3,3.8478]
[1736540241379,3.0,3281.0,3280.3,0.7993]
[1736540241586,3.08249413,3281.0,3280.3,0.7993]
[1736540241741,3.04837,3280.5,3280.0,0.7789]
[1736540241948,3.04864,3280.2,3279.4,0.7789]
[1736540242356,3.83999413,3280.2,3279.4,0.7789]
[1736540242575,6.88865413,3280.2,3279.4,0.7789]
[1736540242776,6.88865413,3280.2,3279.5,0.26857042]
[1736540243150,6.13115413,3280.2,3279.5,0.26857042]
[1736540243685,3.08249413,3280.2,3279.5,0.26857042]
[1736540243988,3.08249413,3280.2,3279.4,3.82817]
[1736540244570,3.08249413,3280.6,3279.9,3.04886]
[1736540244770,3.08249413,3280.6,3280.0,0.7597]
[1736540244983,3.08249413,3281.0,3280.2,3.04852]
[1736540245185,3.08249413,3281.0,3280.3,0.7597]
[1736540245561,3.08249413,3281.0,3280.3,1.14357048]
[1736540245962,3.91249413,3281.4,3280.3,1.14357048]
[1736540246161,3.08249413,3281.4,3280.6,0.7725]
[1736540246375,3.08249413,3281.4,3279.7,0.229]
[1736540246376,0.751,3281.7,3280.7,0.03048199]
[1736540246547,3.08249413,3281.8,3281.1,0.7725]
[1736540247174,6.88030413,3282.2,3281.1,0.7725]
[1736540247388,3.08249413,3282.2,3281.5,3.81987]
[1736540247905,0.751,3282.5,3281.5,0.7725]
[1736540248112,3.04668,3282.3,3281.5,0.7725]
[1736540248247,3.0,3282.1,3281.5,0.7725]
[1736540248553,3.0,3282.1,3281.5,1.154489]
[1736540248753,3.0,3282.1,3281.5,0.7725]
[1736540249490,3.0,3282.1,3281.6,3.04728]
[1736540249686,3.0,3282.3,3281.5,0.7725]
[1736540249904,3.04657,3282.4,3281.5,0.7725]
[1736540250621,3.0,3282.5,3281.5,0.7725]
[1736540250909,6.04646,3282.5,3281.6,3.04729]
[1736540251603,6.04646,3282.5,3281.7,0.7614]
[1736540251604,3.0,3282.5,3281.7,0.7614]
[1736540251805,3.08249413,3283.0,3282.0,3.04683]
[1736540252010,3.08249413,3283.0,3282.1,0.7614]
[1736540252505,3.0,3282.9,3282.1,0.7614]
[1736540252807,6.0461,3282.9,3282.1,0.7614]
[1736540253870,3.0,3282.9,3282.1,1.142235]
[1736540254074,3.08249413,3283.0,3281.7,3.0472]
[1736540254371,3.0,3283.2,3282.4,0.7939]
[1736540255407,3.04588,3283.2,3282.4,0.7939]
[1736540255715,3.0,3283.1,3282.4,0.7939]
[1736540256485,3.0,3283.3,3282.4,0.7939]
[1736540256687,3.08249413,3283.4,3282.5,0.03046327]
[1736540256909,3.08249413,3283.4,3282.8,0.7939]
[1736540257296,3.0,3283.3,3282.8,0.7939]
[1736540258015,3.08249413,3283.4,3282.8,0.7939]
[1736540258221,3.08249413,3283.8,3282.7,0.8243]
[1736540258380,6.12744413,3284.2,3283.2,0.8243]
[1736540258580,3.0,3284.0,3283.2,0.8243]
[1736540260980,3.0,3284.1,3283.3,3.0457]
[1736540261287,3.0484484,3284.5,3283.5,0.8028]
[1736540261513,3.0038484,3284.5,3283.5,0.8028]
[1736540261846,3.0,3284.3,3283.5,0.8028]
[1736540262021,3.04481,3284.3,3283.5,0.8028]
[1736540262320,3.08249413,3284.2,3283.5,0.8028]
[1736540263113,3.04501,3284.1,3283.5,0.8028]
[1736540263317,3.0,3284.0,3283.5,0.8028]
[1736540263898,3.04501,3284.1,3283.5,0.8028]
[1736540263899,3.0,3284.1,3283.5,0.8028]
[1736540264227,3.0,3284.1,3283.5,3.84831]
[1736540264727,3.0,3284.1,3283.5,4.233141]
[1736540264899,3.0,3284.1,3283.5,1.187631]
[1736540265502,3.0,3284.1,3283.6,3.86581]
[1736540265708,3.0,3284.4,3283.6,3.86581]
[1736540265918,0.0038484,3284.5,3283.9,0.7621]
[1736540266417,6.0559584,3284.5,3283.9,0.7621]
[1736540266808,3.0447,3284.4,3283.9,0.7621]
[1736540267394,3.0038484,3284.5,3283.9,0.7621]
[1736540267634,0.0038484,3284.5,3284.1,3.04496]
[1736540267833,0.0038484,3284.5,3284.4,0.7887]
[1736540268017,0.0038484,3284.5,3284.4,3.83339]
[1736540268224,0.0038484,3284.5,3284.4,0.7887]
[1736540269757,3.0,3285.3,3284.4,0.81914497]
[1736540269898,3.04361,3285.6,3284.8,0.8331]
[1736540270241,3.04368,3285.5,3284.8,0.8331]
[1736540270443,0.0075,3285.2,3284.8,0.8331]
[1736540270610,3.08249413,3285.4,3284.8,0.8331]
[1736540270955,3.0,3285.2,3284.8,0.8331]
[1736540271495,3.04395,3285.2,3284.8,0.8331]
[1736540272106,3.0,3285.3,3284.8,0.8331]
[1736540273220,3.04361,3285.6,3284.8,0.8331]
[1736540273425,3.04368,3285.5,3284.8,1.22389333]
[1736540273616,3.0,3285.4,3284.8,0.8331]
[1736540274158,3.0,3285.6,3284.8,3.87742]